[Event "45th FIDE Olympiad 2024"]
[Site "Budapest"]
[Date "2024.09.16"]
[Round "6.116"]
[White "Cawdery, Daniel"]
[Black "Ansat, Aldiyar"]
[Result "1/2-1/2"]
[ECO "B30"]
[WhiteElo "2356"]
[BlackElo "2457"]
[Annotator "TA"]
[PlyCount "30"]
[EventDate "2024.09.05"]
[EventType "team-tourn"]
[EventCountry "HUN"]
[SourceTitle "playchess.com"]
[Source "ChessBase"]
[SourceQuality "1"]
[WhiteTeam "South Africa"]
[BlackTeam "Kazakhstan"]
[WhiteTeamCountry "RSA"]
[BlackTeamCountry "KAZ"]
[TimeControl "40/5400+30:1800+30"]

{[%evp 12,30,9,6,9,9,0,0,0,-22,0,-9,0,-9,0,-3,0,-7,0,-13,0]} 1. e4 c5 2. Nf3 Nc6 3. Bb5 e6 4. O-O Nge7 5. Re1 Nd4 6. Bf1 Nec6 7. c3 {The position is equal.} Nxf3+ 8. Qxf3 Be7 9. d3 O-O 10. Qg3 d5 11. Nd2 Bh4 12. Qf3 Bf6 13. Qg3 Bh4 14. Qf3 Bf6 15. Qg3 Bh4 {Not much happened in this game.   Weighted Error Value: White=0.04 (flawless) /Black=0.06 (flawless) .  OK:         	White=4     	Black=2} 1/2-1/2

[Event "45th FIDE Olympiad 2024"]
[Site "Budapest"]
[Date "2024.09.16"]
[Round "6.117"]
[White "Neiksans, Arturs"]
[Black "Mandizha, Farai"]
[Result "1/2-1/2"]
[ECO "B52"]
[WhiteElo "2571"]
[BlackElo "2371"]
[Annotator "TA"]
[PlyCount "75"]
[EventDate "2024.09.05"]
[EventType "team-tourn"]
[EventCountry "HUN"]
[SourceTitle "playchess.com"]
[Source "ChessBase"]
[SourceQuality "1"]
[WhiteTeam "Latvia"]
[BlackTeam "Zimbabwe"]
[WhiteTeamCountry "LAT"]
[BlackTeamCountry "ZIM"]
[TimeControl "40/5400+30:1800+30"]

{[%evp 9,75,8,49,16,8,9,5,6,0,10,27,15,24,24,24,27,31,42,30,32,42,41,30,38,43,36,54,64,84,74,84,85,79,83,83,35,36,35,36,0,24,0,0,0,16,0,0,0,0,0,0,0,0,0,0,0,0,0,0,0,0,0,0,0,0,0,0,0]} 1. e4 c5 2. Nf3 {[%cal Bg1f3,Bf3d4,Bd4b5][%mdl 32]} d6 3. Bb5+ Bd7 4. c4 g6 5. d4 Bg7 6. O-O cxd4 7. Nxd4 Nc6 8. Be3 Nf6 9. f3 O-O 10. Nc3 Ne5 11. b3 Bxb5 12. Ndxb5 a6 13. Nd4 Rc8 {[%cal Ob7b5]} 14. Rc1 e6 15. h3 Qa5 16. Qd2 Rfd8 17. Rfd1 h5 18. Bg5 Ned7 19. Kh1 Re8 20. Nde2 Rc6 21. Bf4 Bf8 {[#]} 22. Nd5 Qxd2 $14 23. Nxf6+ Nxf6 24. Rxd2 Rec8 (24... b5 $5) 25. Rcd1 {[%cal Rf4d6]} e5 {The position is equal.} 26. Bg5 Nh7 27. Be3 b5 28. cxb5 axb5 29. g4 hxg4 30. hxg4 Be7 31. Kg2 Kg7 32. Rd5 b4 33. R1d2 Rc2 34. Kf2 Bh4+ 35. Kg2 Be7 36. Kf2 Bh4+ 37. Kg2 Be7 38. Kf2 {Weighted Error Value: White=0.07 (flawless) /Black=0.06 (flawless) .  Mistake:       	White=1     	---        Inaccurate:     	White=1     	---        OK:         	White=14    	Black=11     Best:        	White=1     	Black=2} 1/2-1/2

[Event "45th FIDE Olympiad 2024"]
[Site "Budapest"]
[Date "2024.09.16"]
[Round "6.118"]
[White "Makoto, Rodwell"]
[Black "Meshkovs, Nikita"]
[Result "1-0"]
[ECO "E05"]
[WhiteElo "2311"]
[BlackElo "2534"]
[Annotator "TA"]
[PlyCount "133"]
[EventDate "2024.09.05"]
[EventType "team-tourn"]
[EventCountry "HUN"]
[SourceTitle "playchess.com"]
[Source "ChessBase"]
[SourceQuality "1"]
[WhiteTeam "Zimbabwe"]
[BlackTeam "Latvia"]
[WhiteTeamCountry "ZIM"]
[BlackTeamCountry "LAT"]
[TimeControl "40/5400+30:1800+30"]

{[%evp 35,133,59,78,78,71,70,83,85,81,44,37,37,62,0,0,0,0,0,0,0,18,26,14,15,12,31,45,45,45,45,45,45,45,45,45,45,45,45,45,45,45,45,45,45,45,45,69,69,69,69,69,69,69,69,69,69,77,69,69,69,69,55,69,69,69,69,155,162,217,177,166,71,152,0,195,0,182,189,196,211,212,211,273,273,29961,29964,29958,29961,29965,29966,29965,29967,29966,29968,29968,29969,29967,29970,29968,29971]} 1. Nf3 Nf6 2. g3 d5 3. Bg2 e6 4. O-O Be7 5. c4 O-O 6. d4 dxc4 7. Qc2 b5 8. a4 {E05: Open Catalan: 5 Nf3 Be7.} b4 9. Nfd2 Nd5 10. Nxc4 c5 11. dxc5 Ba6 12. b3 Nc6 $146 ({Predecessor:} 12... Qc7 13. Bb2 Nd7 14. e4 N5f6 15. Nbd2 Rac8 16. Rad1 Nxc5 17. Be5 Qc6 18. Bxf6 gxf6 {0-1 Atakhan,A (2294)-Dubov,D (2710) Titled Arena Mar 6th blitz 2021}) 13. Bb2 Bxc5 14. Rd1 Qe7 15. Nbd2 f5 16. e3 Rac8 17. Nf3 Nb6 18. Nfe5 Nxe5 19. Nxe5 (19. Bxe5 Bxc4 20. bxc4 a5 $15) 19... Bb7 20. Qe2 Bxg2 21. Kxg2 Qb7+ 22. Qf3 Nd5 23. Kg1 Rc7 24. Nc4 (24. Rac1 $14) 24... Nc3 $1 $11 25. Qxb7 Rxb7 26. Rd3 Be7 $1 27. Kg2 (27. Bxc3 bxc3 28. Rc1 (28. Rxc3 $2 Bf6 $17) 28... Bf6 $17) 27... Rd8 28. Rxd8+ Bxd8 29. Rc1 Bf6 30. Nd6 Rb6 31. Nb5 Nxb5 32. Bxf6 gxf6 33. axb5 Rxb5 34. Rc8+ Kf7 35. Rc7+ Kg6 36. Rxa7 e5 37. Kf3 h5 38. h4 Rb8 39. Rc7 Rb6 40. Ke2 e4 41. Rc4 Rb8 42. f3 exf3+ 43. Kxf3 Rb5 44. Kf4 Kf7 45. Rc7+ Kg6 $1 46. Rd7 Kh6 47. Kf3 Kg6 48. Ke2 Rb8 49. Rd5 Rb7 50. Kf3 Re7 ({Black should play} 50... Rb8 $14) 51. Rb5 $16 Re4 (51... Rc7 $142 52. Rxb4 Rc2) 52. Rb7 Kh6 53. Rd7 (53. Ke2 $18 {and White stays clearly on top.}) 53... Re5 (53... Re6 $142) 54. Rb7 Re4 55. Rb5 Kg6 56. Kf2 Rg4 57. Rd5 Re4 58. Rd4 Kf7 59. Kf3 Rxd4 $2 (59... Re6 $18 60. Rxb4 Rc6) 60. exd4 Ke7 61. Kf4 Ke6 62. d5+ $1 Kxd5 63. Kxf5 Kd4 {[#]} 64. g4 $1 ({And not} 64. Kxf6 Kc3 65. Kg5 Kxb3 $11) 64... hxg4 65. Kxg4 Ke4 66. h5 f5+ {[#]} 67. Kh3 $1 1-0

[Event "45th FIDE Olympiad 2024"]
[Site "Budapest"]
[Date "2024.09.16"]
[Round "6.119"]
[White "Kantans, Toms"]
[Black "Mushore, Emarald Takudzwa"]
[Result "1-0"]
[ECO "C86"]
[WhiteElo "2486"]
[BlackElo "2150"]
[Annotator "TA"]
[PlyCount "79"]
[EventDate "2024.09.05"]
[EventType "team-tourn"]
[EventCountry "HUN"]
[SourceTitle "playchess.com"]
[Source "ChessBase"]
[SourceQuality "1"]
[WhiteTeam "Latvia"]
[BlackTeam "Zimbabwe"]
[WhiteTeamCountry "LAT"]
[BlackTeamCountry "ZIM"]
[TimeControl "40/5400+30:1800+30"]

{[%evp 18,79,20,11,64,9,10,11,20,14,22,4,71,77,73,71,74,43,84,73,83,66,74,8,100,97,90,97,116,102,183,169,182,127,100,41,140,151,176,176,219,208,214,229,219,229,221,211,236,240,233,227,189,96,116,108,103,121,160,165,391,392,350,269]} 1. e4 e5 2. Nf3 Nc6 3. Bb5 a6 4. Ba4 Nf6 5. O-O b5 6. Bb3 Be7 7. Qe2 O-O 8. c3 d5 9. d3 Bg4 10. h3 Bh5 (10... Bxf3 $11 11. Qxf3 d4) 11. Bg5 (11. exd5 $14 Na5 12. Bc2) 11... dxe4 $11 12. dxe4 Na5 {The position is equal.} 13. Bc2 (13. g4 {is more complex.} Nxg4 14. hxg4 Nxb3 15. axb3 Bxg4 16. Rd1) 13... h6 14. Bh4 (14. Be3 $5) 14... g5 (14... Nd7 $11 {remains equal.} 15. Bg3 Nc4) 15. Bg3 $16 Bd6 16. Nbd2 (16. Bxe5 $2 Bxf3 17. Qxf3 Bxe5 $19) 16... Qe7 17. b4 Nb7 18. a4 c6 19. Ra2 Rac8 20. Bb3 (20. Rfa1 $16) 20... Nd7 (20... a5 $1 $11) 21. axb5 axb5 22. Ra7 Rc7 23. Rfa1 Kg7 (23... Nf6 $16 {was called for.}) 24. Nf1 $1 $18 Bg6 25. Ne3 (25. Rd1 $1 $18) 25... Nf6 $16 26. Ng4 {White has more active pieces.} ({Better is} 26. Nh4 $16 gxh4 27. Bxh4) 26... Nxe4 (26... Nxg4 $1 $14 27. hxg4 h5) 27. Bxe5+ (27. Nfxe5 $2 Nxg3 28. Qe3 (28. fxg3 $2 h5 $19) 28... Bxe5 29. Nxe5 Re8 $19) 27... f6 {[#]} 28. Bxd6 Nbxd6 {[#]} 29. Rxc7 Qxc7 30. Nd4 {aiming for Ne6+.} Bf7 31. Bxf7 Qxf7 32. f3 {[%cal Bf2f3,Bf3e4,Be4e5][%mdl 32]} (32. Nxc6 Qb3 33. Ra6 Qxc3 $14) 32... c5 (32... Nxc3 $2 33. Qe6 (33. Qe1 Nd5 $18) 33... Nc4 34. Qe1 $18 (34. Qxc6 Kh8 $18)) 33. fxe4 (33. Nxb5 Ng3 34. Qd3 Nxb5 35. Qxb5 cxb4 $16) 33... cxd4 34. e5 (34. cxd4 Qc4 35. Ra7+ Rf7 36. Rxf7+ Kxf7 37. Qxc4+ (37. Nxh6+ Ke8 $11) 37... bxc4 $11) 34... f5 {[%cal Bf6f5,Bf5f4][%mdl 32]} 35. Nf2 (35. exd6 fxg4 36. Qe5+ (36. cxd4 gxh3 37. Rc1 Kg8 $11) (36. hxg4 dxc3 37. Rc1 Qa7+ 38. Kh1 Qd7 $11) 36... Kg8 $11) (35. Nxh6 $18 Kxh6 36. Ra6 (36. exd6 dxc3 37. Qxb5 c2 $16) 36... dxc3 37. Rxd6+ Kg7 38. Qe3 (38. Qxb5 Qa7+ 39. Kh2 Qe3 $11)) 35... Nc4 36. cxd4 {Threatens to win with Qf3.} Qd5 37. Qd3 Rf7 38. Re1 Kf8 $2 (38... Nb2 39. Qc3 Nc4) 39. Nd1 $18 f4 40. Nc3 {Weighted Error Value: White=0.17 (very precise) /Black=0.33.  Mistake:       	White=5     	Black=5      Inaccurate:     	White=1     	Black=2      OK:         	White=15    	Black=10     Best:        	White=3     	Black=1} 1-0

[Event "45th FIDE Olympiad 2024"]
[Site "Budapest"]
[Date "2024.09.16"]
[Round "6.120"]
[White "Mapuranga, Vitalis"]
[Black "Starostits, Ilmars"]
[Result "0-1"]
[ECO "D13"]
[WhiteElo "2013"]
[BlackElo "2344"]
[Annotator "TA"]
[PlyCount "90"]
[EventDate "2024.09.05"]
[EventType "team-tourn"]
[EventCountry "HUN"]
[SourceTitle "playchess.com"]
[Source "ChessBase"]
[SourceQuality "1"]
[WhiteTeam "Zimbabwe"]
[BlackTeam "Latvia"]
[WhiteTeamCountry "ZIM"]
[BlackTeamCountry "LAT"]
[TimeControl "40/5400+30:1800+30"]

{[%evp 23,90,20,24,12,25,11,42,43,72,52,62,46,48,60,62,25,57,55,109,74,80,87,100,83,79,0,6,-39,-33,-33,-31,-32,-53,-51,0,-420,-412,-643,-605,-605,-605,-588,-536,-553,-589,-575,-489,-828,-543,-692,-628,-1027,-1020,-1020,-1003,-1110,-1085,-1966,-1772,-5289,-2460,-29987,-29977,-29988,-29989,-29991,-29989,-29989,-29990]} 1. d4 d5 2. c4 c6 3. Nc3 Nf6 4. Nf3 a6 5. cxd5 cxd5 6. Bf4 Nc6 7. e3 Bg4 8. h3 Bxf3 9. Qxf3 e6 10. Bd3 Rc8 11. O-O Be7 12. Rac1 O-O 13. Bb1 b5 {[%cal Bb7b5,Bb5b4][%mdl 32]} 14. Rfd1 Qa5 15. g4 {[%cal Bg2g4,Bg4g5][%mdl 32] White is slightly better.} Rfd8 16. g5 Ne8 {[%cal Bf6e8,Be8g7,Bg7h5][%mdl 32]} 17. e4 {[%cal Re4d5]} b4 18. Ne2 g6 19. e5 Rc7 20. Kg2 Rdc8 (20... Ng7 $14) 21. Rh1 Ng7 22. h4 {[%cal Oh4h5] Black must now prevent h5!} Nh5 23. Be3 Bf8 24. Ng3 ({Better is} 24. Rcf1 $16) 24... Nxg3 25. fxg3 {[#]} b3 $1 26. axb3 {[#]} Nxd4 $1 27. Rxc7 $1 Nxf3 28. Rxc8 Nxe5 (28... d4 $1 $15 29. Kxf3 Qd5+ (29... dxe3 30. Rd1 $11) 30. Be4 Qxb3) 29. Rd1 $2 {[%mdl 8192] White is now going downhill.} (29. Bc5 $1 $11 Nd7 (29... Qd2+ 30. Kh3 $11) 30. Be7) 29... Qb5 $19 30. Rd2 {Prevents Qe2+} (30. Re1 $142 Qb7 (30... Qxb3 $2 31. Bd4 $19) 31. Rxf8+ Kxf8 32. Bc5+ Ke8 33. Rxe5) 30... Qb7 {Hoping for ...d4+.} 31. Rxf8+ Kxf8 32. Bc5+ Ke8 33. Bd4 Nc6 {[%cal Oc6d4]} 34. Bf6 Qb4 35. Rc2 (35. Re2 $142) 35... Kd7 36. Rc3 Nd4 37. Be5 Nb5 38. Rf3 Qe1 39. Rxf7+ Kc6 40. Rxh7 Qxb1 41. Bf6 Nd6 {( -> ...Qc2+)} 42. h5 gxh5 {Black mates.} 43. Rxh5 Qe4+ 44. Kh3 Qh1+ 45. Kg4 Qd1+ {Weighted Error Value: White=1.20/Black=0.45.  Loses game:     	White=1     	---        Mistake:       	White=3     	Black=2      Inaccurate:     	White=4     	Black=4      OK:         	White=6     	Black=8      Best:        	White=1     	Black=2      Strong:       	White=1     	---        Brilliant:      	---       	Black=1} 0-1

[Event "45th FIDE Olympiad 2024"]
[Site "Budapest"]
[Date "2024.09.16"]
[Round "6.121"]
[White "Miguel, Sergio"]
[Black "Garcia Pantoja, Roberto"]
[Result "0-1"]
[ECO "B52"]
[WhiteElo "2241"]
[BlackElo "2550"]
[Annotator "RC"]
[PlyCount "64"]
[EventDate "2024.09.05"]
[EventType "team-tourn"]
[EventCountry "HUN"]
[SourceTitle "playchess.com"]
[Source "ChessBase"]
[SourceQuality "1"]
[WhiteTeam "Angola"]
[BlackTeam "Colombia"]
[WhiteTeamCountry "ANG"]
[BlackTeamCountry "COL"]
[TimeControl "40/5400+30:1800+30"]

1. e4 c5 2. Nf3 d6 3. Bb5+ Bd7 4. Bxd7+ Qxd7 5. O-O Nc6 6. c3 d5 7. exd5 Qxd5 8. d4 e6 9. Qa4 Nf6 10. c4 Qd7 11. Be3 cxd4 12. Nxd4 Bc5 13. Nf5 Bxe3 14. Nxe3 O-O 15. Nc3 Qc7 16. Rac1 Ne5 17. Nb5 Qc6 18. Rfd1 a6 19. Nc3 Qc7 20. c5 Qxc5 21. Ncd5 Qb5 22. Nxf6+ gxf6 23. Qh4 Kg7 24. Ng4 Nxg4 25. Qxg4+ Qg5 26. Qf3 b5 27. Rc6 Rfd8 28. g3 a5 29. b3 Qf5 30. Qe2 Rac8 31. Rxd8 Rxd8 32. Qc2 Qf3 0-1

[Event "45th FIDE Olympiad 2024"]
[Site "Budapest"]
[Date "2024.09.16"]
[Round "6.122"]
[White "Cardoso Cardoso, Jose Gabriel"]
[Black "Silva, David"]
[Result "1-0"]
[ECO "B32"]
[WhiteElo "2508"]
[BlackElo "2363"]
[Annotator "TA"]
[PlyCount "57"]
[EventDate "2024.09.05"]
[EventType "team-tourn"]
[EventCountry "HUN"]
[SourceTitle "playchess.com"]
[Source "ChessBase"]
[SourceQuality "1"]
[WhiteTeam "Colombia"]
[BlackTeam "Angola"]
[WhiteTeamCountry "COL"]
[BlackTeamCountry "ANG"]
[TimeControl "40/5400+30:1800+30"]

{[%evp 13,57,16,34,10,25,17,21,-7,8,-19,-27,-24,-13,-13,0,-9,0,-6,0,0,0,-2,0,0,0,0,0,0,0,-26,-23,-51,117,127,179,36,29,29,31,33,268,235,328,204,388,389]} 1. e4 c5 2. Nf3 {[%cal Bg1f3,Bf3d4,Bd4b5][%mdl 32]} Nc6 3. d4 cxd4 4. Nxd4 e5 5. Nb5 d6 6. c4 Be7 7. Be2 Be6 8. Be3 a6 9. N5c3 Bg5 10. Qd2 {The position is equal.} Bxe3 11. Qxe3 Nd4 12. Na3 {Inhibits Nc2+.} Nf6 13. O-O Rc8 14. Rfd1 Qb6 15. Rd2 O-O 16. h3 Rfd8 17. Rad1 Qc5 18. Bf1 Qb4 19. Ne2 Nxe2+ 20. Bxe2 h6 21. Bf1 {[#]} b5 $1 22. cxb5 Bxa2 $2 (22... axb5 $15 {stays ahead.} 23. f3 Bxa2) 23. bxa6 $16 Bb3 {[#]} (23... Nxe4 $16 24. Rc2 Nc5) 24. Re1 (24. Ra1 $1 $18) 24... Nxe4 $1 $14 25. Rd3 Nc5 26. Rc3 $36 {[%mdl 2048] a7 is the strong threat. White fights for an advantage.} Be6 $2 {[#]} (26... Ra8 $1 $14) 27. a7 $1 $18 d5 {And now ...d4 would win.} 28. a8=Q d4 $2 (28... Rxa8 {is a better defense.} 29. Rxc5 (29. Qxc5 Qxb2 30. Rg3 e4 $18) 29... Qxb2) 29. Qxe5 {Weighted Error Value: White=0.26 (precise) /Black=0.53.  Loses game:     	---       	Black=1      Mistake:       	White=1     	Black=3      Inaccurate:     	White=4     	Black=1      OK:         	White=9     	Black=8      Best:        	White=3     	---        Strong:       	White=1     	Black=1} 1-0

[Event "45th FIDE Olympiad 2024"]
[Site "Budapest"]
[Date "2024.09.16"]
[Round "6.123"]
[White "Junior, Domingos"]
[Black "Avila Pavas, Santiago"]
[Result "0-1"]
[ECO "B75"]
[WhiteElo "2183"]
[BlackElo "2485"]
[Annotator "TA"]
[PlyCount "64"]
[EventDate "2024.09.05"]
[EventType "team-tourn"]
[EventCountry "HUN"]
[SourceTitle "playchess.com"]
[Source "ChessBase"]
[SourceQuality "1"]
[WhiteTeam "Angola"]
[BlackTeam "Colombia"]
[WhiteTeamCountry "ANG"]
[BlackTeamCountry "COL"]
[TimeControl "40/5400+30:1800+30"]

{[%evp 18,64,53,56,57,27,43,23,14,-18,0,-57,-43,-34,-56,-63,-69,-91,-54,-64,-69,-70,-47,-194,-136,-137,-112,-187,-182,-320,-306,-313,-173,-150,-182,-270,-261,-235,-232,-246,-218,-442,-466,-442,-445,-408,0,-29998,-29999]} 1. e4 c5 2. Nf3 d6 3. d4 cxd4 4. Nxd4 Nf6 5. Nc3 g6 6. Be3 Nc6 7. f3 h5 8. Bc4 Bg7 9. Qd2 Bd7 10. O-O-O Na5 11. Bb3 Rb8 12. h3 b5 {White has an edge.} 13. g4 Qc8 14. Nd5 (14. Kb1 $11) 14... Nxd5 15. exd5 Nc4 16. Bxc4 bxc4 17. c3 Qa6 18. Kb1 Qa5 $1 19. Rhe1 Qxd5 {Threatens to win with ...Qb7.} 20. Qe2 (20. Bg5 $15 f6 21. Qe2) 20... O-O (20... Qb7 $19 {...Kf8 would now be deadly.} 21. Bh6 O-O (21... Bxh6 22. Qxe7#) 22. Bxg7 Kxg7) 21. Ka1 $17 {[%cal Od4f5]} Qa5 22. Qd2 (22. gxh5 $17 Qxh5 23. Qxc4) 22... Rb6 {Strongly threatening ...hxg4.} 23. Qc1 (23. Ne2 $142 Ra6 24. a3) 23... Rfb8 $19 24. Rd2 h4 (24... e5 $142 25. Ne2 Ra6) 25. f4 {[%cal Of4f5]} e5 $40 {[%mdl 128] White is in trouble. Black is more active.} 26. Nf3 (26. fxe5 {is a better defense.} dxe5 27. Nf5) 26... Ra6 27. a3 Bc6 $1 28. Nxh4 exf4 {[%cal Ob8b2] ( -> ...Rxb2!)} 29. Bxf4 $2 {[#]} (29. Bd4 Qg5 30. Bxg7 Kxg7 (30... Qxh4 31. Bd4 $11) 31. Ng2) 29... Rxb2 $3 {[%mdl 512]} 30. Rxb2 {aiming for Rb8+.} (30. Qxb2 Bxc3 (30... Qxa3+ 31. Qxa3 Rxa3+ 32. Kb2 $14) 31. Re3 Qxa3+ (31... Bxb2+ $2 32. Rxb2 Qc5 33. Kb1 $19) (31... Bxd2 $2 32. Nxg6 $18) 32. Kb1 Rb6 (32... Qxb2+ 33. Rxb2 Bd4 34. Ree2 $14) (32... Bxb2 $2 33. Rxa3 Bxa3 34. Re2 $19) 33. Rxc3 Be4+ (33... Rxb2+ $2 34. Rxb2 Qxc3 35. Rb8+ Kh7 36. Nf5 $19) 34. Kc1 Qxc3+ (34... Rxb2 35. Kd1 Qxc3 36. Rxb2 Qxb2 37. Bd2 Bd3 38. Ke1 c3 39. Nf3 cxd2+ 40. Nxd2 Qc1+ 41. Kf2 Qxd2+ 42. Kg3 Be4 43. g5 Qg2+ 44. Kh4 Qf2+ 45. Kg4 Bf5#) 35. Kd1 Rxb2 36. Rxb2 Qxb2 37. Bd2 Bd3 (37... c3 38. Bxc3 Qxc3 39. Ke2 Qd3+ 40. Ke1 Qc2 41. Kf1 Qh2 42. Ke1 Bd3 43. Ng2 Qxg2 44. Kd1 Qc2+ 45. Ke1 Qe2#) 38. Ke1 c3 39. Nf3 cxd2+ 40. Nxd2 Qc1+ 41. Kf2 Qxd2+ 42. Kf3 g5 43. h4 gxh4 44. g5 Qe2+ 45. Kf4 Qe4#) 30... Bxc3 ({Weaker is} 30... Qxa3+ 31. Kb1 Kh7 (31... Qxc3 $2 32. Rb8+ Kh7 33. Qxc3 $18) 32. Nxg6 Bxc3 33. Nf8+ (33. Ne7 $2 Ba4 $19) 33... Kg8 34. Nd7 (34. Ng6 $2 Rb6 $19) 34... Bxd7 (34... Qa1+ 35. Kc2 $11) 35. Rb8+ Kh7 36. Qxa3 Rxa3 37. Rc1 $11) 31. Bxd6 {[#]} Be4 $2 {A strong pair of Bishops.} 32. Be7 $2 {[%mdl 8192]} (32. Rxe4 $11 Rxd6 33. Re3) 32... Qxa3+ {Weighted Error Value: White=0.54/Black=0.33.  Loses game:     	White=1     	---        Missed win:     	---       	Black=1      Mistake:       	White=6     	Black=2      Inaccurate:     	White=2     	Black=1      OK:         	White=8     	Black=6      Best:        	White=1     	Black=4      Strong:       	---       	Black=1} 0-1

[Event "45th FIDE Olympiad 2024"]
[Site "Budapest"]
[Date "2024.09.16"]
[Round "6.124"]
[White "Valderrama Quiceno, Esteban Alb"]
[Black "Domingos, Catarino"]
[Result "1/2-1/2"]
[ECO "C95"]
[WhiteElo "2418"]
[BlackElo "2229"]
[Annotator "RC"]
[PlyCount "95"]
[EventDate "2024.09.05"]
[EventType "team-tourn"]
[EventCountry "HUN"]
[SourceTitle "playchess.com"]
[Source "ChessBase"]
[SourceQuality "1"]
[WhiteTeam "Colombia"]
[BlackTeam "Angola"]
[WhiteTeamCountry "COL"]
[BlackTeamCountry "ANG"]
[TimeControl "40/5400+30:1800+30"]

1. e4 e5 2. Nf3 Nc6 3. Bb5 a6 4. Ba4 Nf6 5. O-O b5 6. Bb3 Be7 7. Re1 d6 8. c3 O-O 9. h3 Nb8 10. d4 Nbd7 11. Nbd2 Bb7 12. Bc2 Re8 13. Nf1 Bf8 14. Ng3 g6 15. a4 c5 16. d5 c4 17. Be3 h6 18. Qd2 Kh7 19. Nh2 Bg7 20. Kh1 Qc7 21. Rf1 Ng8 22. f4 exf4 23. Rxf4 Ne5 24. Raf1 Re7 25. Ne2 Rae8 26. Nf3 Bc8 27. axb5 axb5 28. Rh4 Nxf3 29. Rxf3 f6 30. Nf4 Re5 31. Ne2 Qf7 32. Ng3 g5 33. Rh5 Qg6 34. Bd4 g4 35. Bxe5 fxe5 36. Rff5 Nf6 37. Rh4 Bxf5 38. exf5 Qf7 39. hxg4 Kg8 40. Ne4 Nxe4 41. Bxe4 Ra8 42. Kh2 Ra1 43. g5 hxg5 44. Qxg5 Qf6 45. Qh5 Qf7 46. Qg5 Qf6 47. Qh5 Qf7 48. Qg5 1/2-1/2

[Event "45th FIDE Olympiad 2024"]
[Site "Budapest"]
[Date "2024.09.16"]
[Round "6.125"]
[White "Mwali, Chitumbo"]
[Black "Fawzy, Adham"]
[Result "0-1"]
[ECO "A20"]
[WhiteElo "2312"]
[BlackElo "2507"]
[Annotator "TA"]
[PlyCount "104"]
[EventDate "2024.09.05"]
[EventType "team-tourn"]
[EventCountry "HUN"]
[SourceTitle "playchess.com"]
[Source "ChessBase"]
[SourceQuality "1"]
[WhiteTeam "Zambia"]
[BlackTeam "Egypt"]
[WhiteTeamCountry "ZAM"]
[BlackTeamCountry "EGY"]
[TimeControl "40/5400+30:1800+30"]

{[%evp 13,104,7,8,10,0,0,0,0,0,0,0,0,0,0,0,0,0,0,27,20,8,6,2,4,10,0,5,2,2,2,14,0,8,0,0,-81,-45,-34,-29,-77,-87,-91,-83,-87,-79,-95,-96,-104,-102,-167,-7,-13,-8,-12,-10,-9,-6,-8,-13,-44,-8,-8,0,0,0,-17,-25,-80,-23,-27,-23,-18,0,0,0,0,0,-399,-391,-656,-641,-29972,-29976,-29975,-29977,-29995,-29994,-29994,-29995,-29995,-29996,-29996,-29997]} 1. c4 e5 2. g3 Nf6 3. Bg2 d5 4. cxd5 Nxd5 5. Nf3 Nc6 6. O-O Nb6 7. d3 Be7 8. a3 a5 9. b3 Be6 {[%cal Oe5e4]} 10. Bb2 {The position is equal.} f6 11. Nbd2 O-O 12. Rc1 Qd7 13. Qc2 Rfd8 14. Rfd1 Qe8 15. e3 Qf7 16. d4 exd4 17. Nxd4 Nxd4 18. Bxd4 Bxa3 19. Ra1 Bb4 20. Bxb7 Rab8 $132 {[%mdl 2048] Black is fighting back} 21. Be4 f5 22. Bc6 h6 23. Rab1 (23. Rdc1 {simplifies} Bd5 24. Nc4 Nxc4 25. Bxd5 Rxd5 26. Qxc4 c5 27. Bc3) 23... f4 24. gxf4 {[#]} (24. Ne4 $11) 24... Rxd4 $1 25. exd4 Nd5 {...Nc3 is the strong threat.} 26. Nf1 (26. Ne4 $1 $11 {is superior.}) 26... Nc3 $17 27. Ng3 {[%cal Of4f5] Prevents Bf5} Nxb1 28. Rxb1 Qxf4 29. Be4 Rf8 {Black is more active.} 30. Rd1 Bg4 31. Rd3 (31. Qc4+ $17 {was necessary.} Kh8 32. Rf1) 31... h5 $2 (31... Be1 $1 $19 {[%cal Re1f2]} 32. f3 Bh3 (32... Bxg3 33. hxg3 Qxg3+ 34. Qg2 $17)) 32. h3 $1 $11 Be6 {A strong pair of Bishops.} 33. Rf3 Qg5 34. h4 Qxh4 {And now ...Qg5 would win.} 35. Rxf8+ Bxf8 36. d5 Bg4 37. Qxc7 {[%cal Od5d6]} Qg5 38. d6 Qe5 {[%cal Oh5h4] Threatens to win with ...h4!} 39. Bg6 {Threatening mate with Qf7+.} Bxd6 40. Qf7+ Kh8 {White must now prevent ...h4. Chess con chili.} 41. Bxh5 Qe6 {Strongly threatening ...Bxg3.} 42. Kg2 Kh7 43. Qb7 $1 Bh3+ 44. Kh2 Bf5 {Hoping for ...Qh6.} 45. Bf7 $2 {[%mdl 8192]} (45. Bf3 $11 {and White has nothing to worry.}) 45... Qh6+ $1 $19 46. Kg1 $2 (46. Kg2 Qh3+ 47. Kg1 Bxg3 48. fxg3 Qxg3+ 49. Qg2 Qxg2+ 50. Kxg2) 46... Bxg3 47. fxg3 {[%mdl 4096] Endgame. [#] KQB-KQB} Qe3+ $1 {Black mates.} 48. Kh2 {[#]} Be4 $1 49. Qc7 Qf2+ 50. Kh3 Bg2+ 51. Kg4 Qf3+ 52. Kh4 Qf6+ {Weighted Error Value: White=0.42/Black=0.08 (flawless) .  Loses game:     	White=1     	---        Mistake:       	White=4     	Black=1      Inaccurate:     	White=2     	Black=4      OK:         	White=18    	Black=19     Best:        	White=1     	Black=2      Strong:       	White=2     	Black=1} 0-1